[Event "Serbian League Women 2024"]
[Site "Bajina Basta"]
[Date "2024.09.30"]
[Round "4.8"]
[White "Petrovic, Marija"]
[Black "Manakova, Maria"]
[Result "0-1"]
[ECO "A30"]
[WhiteElo "1898"]
[BlackElo "2185"]
[Annotator "RC"]
[PlyCount "190"]
[EventDate "2024.09.26"]
[EventType "team-tourn"]
[EventCountry "SRB"]
[SourceTitle "playchess.com"]
[Source "ChessBase"]
[SourceQuality "1"]
[TimeControl "40/5400+30:1800+30"]

1. Nf3 {[%emt 0:00:32]} Nf6 {[%emt 0:00:13]} 2. b3 {[%emt 0:00:06]} g6 {[%emt 0:00:32]} 3. Bb2 {[%emt 0:00:09]} Bg7 {[%emt 0:00:03]} 4. e3 {[%emt 0:00:04]} O-O {[%emt 0:01:11]} 5. Be2 {[%emt 0:00:06]} b6 {[%emt 0:01:28]} 6. O-O {[%emt 0:00:20]} Bb7 {[%emt 0:00:05]} 7. c4 {[%emt 0:00:42]} c5 {[%emt 0:00:36]} 8. d4 {[%emt 0:00:30]} cxd4 {[%emt 0:00:48]} 9. Nxd4 {[%emt 0:00:30]} d5 {[%emt 0:01:54]} 10. Nc3 {[%emt 0:04:20]} dxc4 {[%emt 0:06:57]} 11. Bxc4 {[%emt 0:00:10]} Nbd7 {[%emt 0:00:47]} 12. Qd2 {[%emt 0:06:18]} a6 {[%emt 0:11:48]} 13. Rfd1 {[%emt 0:02:43]} b5 {[%emt 0:02:56]} 14. Ne6 {[%emt 0:11:58]} fxe6 {[%emt 0:06:37]} 15. Bxe6+ {[%emt 0:00:08]} Kh8 {[%emt 0:00:41]} 16. Bxd7 {[%emt 0:00:10]} Qb6 {[%emt 0:09:59]} 17. Bh3 {[%emt 0:02:28]} g5 {[%emt 0:01:25]} 18. Qe2 {[%emt 0:01:18]} Rg8 {[%emt 0:16:02]} 19. g3 {[%emt 0:08:53]} b4 {[%emt 0:05:57]} 20. Na4 {[%emt 0:01:56]} Qc6 {[%emt 0:00:04]} 21. e4 {[%emt 0:00:10]} Nxe4 {[%emt 0:02:18]} 22. Bxg7+ {[%emt 0:10:16]} Rxg7 {[%emt 0:00:06]} 23. Bg2 {[%emt 0:00:11]} Nc3 {[%emt 0:00:35]} 24. Bxc6 {[%emt 0:00:10]} Nxe2+ {[%emt 0:00:02]} 25. Kf1 {[%emt 0:00:06]} Nxg3+ {[%emt 0:00:18]} 26. hxg3 {[%emt 0:00:01]} Bxc6 {[%emt 0:00:06]} 27. Nc5 {[%emt 0:01:03]} Bf3 {[%emt 0:11:56]} 28. Rd4 {[%emt 0:00:56]} Rg6 {[%emt 0:00:35]} 29. Ke1 {[%emt 0:01:09]} Rc8 {[%emt 0:00:47]} 30. Rc1 {[%emt 0:07:40]} Rgc6 {[%emt 0:02:41]} 31. Rdc4 {[%emt 0:00:11]} Bd5 {[%emt 0:00:33]} 32. R4c2 {[%emt 0:00:24]} g4 {[%emt 0:00:16]} 33. Kd2 {[%emt 0:00:15]} Rd8 {[%emt 0:02:00]} 34. Ke3 {[%emt 0:00:15]} Rf6 {[%emt 0:04:24]} 35. Ke2 {[%emt 0:05:44]} Bf3+ {[%emt 0:01:38]} 36. Ke3 {[%emt 0:00:08]} Bd1 {[%emt 0:03:08]} 37. Rb2 {[%emt 0:06:35]} h5 {[%emt 0:01:39]} 38. Rc4 {[%emt 0:01:16]} a5 {[%emt 0:01:15]} 39. Rd4 {[%emt 0:00:39]} Rf3+ {[%emt 0:03:23]} 40. Ke4 {[%emt 0:00:12]} Rc8 {[%emt 0:01:27]} 41. Rxd1 {[%emt 0:31:35]} Rxc5 {[%emt 0:30:03]} 42. Rd5 {[%emt 0:03:28]} Rxd5 {[%emt 0:00:35]} 43. Kxd5 {[%emt 0:00:02]} Kg7 {[%emt 0:00:19]} 44. Ke6 {[%emt 0:00:29]} Kf8 {[%emt 0:00:29]} 45. Rd2 {[%emt 0:01:51]} Rf6+ {[%emt 0:00:14]} 46. Ke5 {[%emt 0:00:08]} Kf7 {[%emt 0:01:21]} 47. Rc2 {[%emt 0:00:11]} Kg6 {[%emt 0:00:00]} 48. Ke4 {[%emt 0:00:00]} Re6+ {[%emt 0:00:00]} 49. Kf4 {[%emt 0:00:00]} Re1 {[%emt 0:00:00]} 50. Rc6+ {[%emt 0:00:00]} e6 {[%emt 0:00:00]} 51. f3 {[%emt 0:00:00]} Kf6 {[%emt 0:00:00]} 52. fxg4 {[%emt 0:00:00]} Rf1+ {[%emt 0:00:00]} 53. Ke4 {[%emt 0:00:00]} hxg4 {[%emt 0:00:00]} 54. Rc8 {[%emt 0:00:00]} Re1+ {[%emt 0:00:00]} 55. Kf4 {[%emt 0:00:00]} Re2 {[%emt 0:00:00]} 56. Rf8+ {[%emt 0:00:00]} Ke7 {[%emt 0:00:00]} 57. Ra8 {[%emt 0:00:00]} Rxa2 {[%emt 0:00:00]} 58. Kxg4 {[%emt 0:00:00]} Kd6 {[%emt 0:00:00]} 59. Kf4 {[%emt 0:00:00]} Rf2+ {[%emt 0:00:00]} 60. Ke4 {[%emt 0:00:00]} Re2+ {[%emt 0:00:00]} 61. Kd3 {[%emt 0:00:00]} Ra2 {[%emt 0:00:00]} 62. g4 {[%emt 0:00:00]} Ke5 {[%emt 0:00:16]} 63. g5 {[%emt 0:00:00]} Kf5 {[%emt 0:00:25]} 64. Rg8 {[%emt 0:00:00]} Rg2 {[%emt 0:01:01]} 65. Rf8+ {[%emt 0:00:00]} Ke5 {[%emt 0:01:26]} 66. Rg8 {[%emt 0:00:00]} Rg3+ {[%emt 0:00:46]} 67. Kc4 {[%emt 0:00:00]} Kf5 {[%emt 0:01:44]} 68. Rf8+ {[%emt 0:00:00]} Kxg5 {[%emt 0:00:28]} 69. Kb5 {[%emt 0:03:23]} Rxb3 {[%emt 0:00:20]} 70. Kxa5 {[%emt 0:00:06]} Rb1 {[%emt 0:00:15]} 71. Kb5 {[%emt 0:00:16]} e5 {[%emt 0:01:50]} 72. Kc4 {[%emt 0:00:08]} Rc1+ {[%emt 0:01:33]} 73. Kd3 {[%emt 0:03:12]} Rd1+ {[%emt 0:01:08]} 74. Ke2 {[%emt 0:01:16]} Rd4 {[%emt 0:00:11]} 75. Ke3 {[%emt 0:02:14]} Rf4 {[%emt 0:00:06]} 76. Rg8+ {[%emt 0:00:44]} Kf5 {[%emt 0:00:12]} 77. Rf8+ {[%emt 0:01:34]} Ke6 {[%emt 0:00:12]} 78. Rd8 {[%emt 0:00:49]} Rh4 {[%emt 0:00:38]} 79. Rb8 {[%emt 0:02:31]} Kd5 {[%emt 0:00:11]} 80. Rb5+ {[%emt 0:01:06]} Kc4 {[%emt 0:02:15]} 81. Rxe5 {[%emt 0:00:07]} Kc3 {[%emt 0:00:14]} 82. Ke2 {[%emt 0:02:20]} Rh2+ {[%emt 0:00:22]} 83. Ke3 {[%emt 0:01:04]} b3 {[%emt 0:00:57]} 84. Rc5+ {[%emt 0:00:06]} Kb2 {[%emt 0:00:18]} 85. Kd3 {[%emt 0:00:32]} Rc2 {[%emt 0:00:24]} 86. Rb5 {[%emt 0:00:10]} Rc8 {[%emt 0:00:09]} 87. Rh5 {[%emt 0:04:54]} Ka2 {[%emt 0:00:07]} 88. Ra5+ {[%emt 0:00:30]} Kb1 {[%emt 0:00:05]} 89. Kd2 {[%emt 0:03:02]} b2 {[%emt 0:05:16]} 90. Ra7 {[%emt 0:02:34]} Rd8+ {[%emt 0:00:00]} 91. Ke2 {[%emt 0:00:21]} Rd5 {[%emt 0:00:00]} 92. Rb7 {[%emt 0:02:34]} Kc2 {[%emt 0:00:00]} 93. Rc7+ {[%emt 0:00:07]} Kb3 {[%emt 0:00:00]} 94. Rb7+ {[%emt 0:00:11]} Kc3 {[%emt 0:00:00]} 95. Rb8 {[%emt 0:01:06]} Rd4 {[%emt 0:00:00]} 0-1

[Event "Serbian League Women 2024"]
[Site "Bajina Basta"]
[Date "2024.09.30"]
[Round "4.9"]
[White "Unuk, Laura"]
[Black "Bivol, Alina"]
[Result "1/2-1/2"]
[ECO "A53"]
[WhiteElo "2316"]
[BlackElo "2345"]
[Annotator "RC"]
[PlyCount "55"]
[EventDate "2024.09.26"]
[EventType "team-tourn"]
[EventCountry "SRB"]
[SourceTitle "playchess.com"]
[Source "ChessBase"]
[SourceQuality "1"]
[TimeControl "40/5400+30:1800+30"]

1. d4 {[%emt 0:00:33]} Nf6 {[%emt 0:00:06]} 2. c4 {[%emt 0:00:00]} d6 {[%emt 0:00:20]} 3. Nf3 {[%emt 0:04:35]} Nc6 {[%emt 0:00:43]} 4. d5 {[%emt 0:03:19]} Ne5 {[%emt 0:00:07]} 5. Nxe5 {[%emt 0:01:57]} dxe5 {[%emt 0:00:08]} 6. Nc3 {[%emt 0:00:08]} e6 {[%emt 0:00:24]} 7. Bg5 {[%emt 0:16:16]} Be7 {[%emt 0:08:26]} 8. Bxf6 {[%emt 0:06:14]} Bxf6 {[%emt 0:00:17]} 9. g3 {[%emt 0:02:40]} O-O {[%emt 0:00:49]} 10. Bg2 {[%emt 0:00:05]} exd5 {[%emt 0:04:46]} 11. cxd5 {[%emt 0:03:03]} Be7 {[%emt 0:00:05]} 12. O-O {[%emt 0:07:58]} f5 {[%emt 0:00:53]} 13. Rc1 {[%emt 0:02:22]} a6 {[%emt 0:00:17]} 14. d6 {[%emt 0:12:37]} Bxd6 {[%emt 0:03:04]} 15. Bxb7 {[%emt 0:02:34]} Bxb7 {[%emt 0:00:08]} 16. Qb3+ {[%emt 0:00:03]} Kh8 {[%emt 0:00:06]} 17. Qxb7 {[%emt 0:00:04]} Qb8 {[%emt 0:03:30]} 18. Qxb8 {[%emt 0:02:27]} Rfxb8 {[%emt 0:00:04]} 19. b3 {[%emt 0:00:46]} Ra7 {[%emt 0:07:50]} 20. Rfd1 {[%emt 0:04:30]} Kg8 {[%emt 0:02:21]} 21. Rc2 {[%emt 0:03:52]} Kf7 {[%emt 0:01:16]} 22. e3 {[%emt 0:03:42]} Ke6 {[%emt 0:01:34]} 23. Kf1 {[%emt 0:00:47]} g6 {[%emt 0:02:40]} 24. Ke2 {[%emt 0:00:28]} a5 {[%emt 0:04:29]} 25. Na4 {[%emt 0:03:52]} Rb5 {[%emt 0:00:10]} 26. Rc4 {[%emt 0:07:18]} h5 {[%emt 0:06:05]} 27. h4 {[%emt 0:04:10]} Ra8 {[%emt 0:02:33]} 28. Rd2 {[%emt 0:02:47]} 1/2-1/2

[Event "Serbian League Women 2024"]
[Site "Bajina Basta"]
[Date "2024.09.30"]
[Round "4.10"]
[White "Velikic, Adela"]
[Black "Lach, Aleksandra"]
[Result "1-0"]
[ECO "A96"]
[WhiteElo "2260"]
[BlackElo "2278"]
[Annotator "RC"]
[PlyCount "113"]
[EventDate "2024.09.26"]
[EventType "team-tourn"]
[EventCountry "SRB"]
[SourceTitle "playchess.com"]
[Source "ChessBase"]
[SourceQuality "1"]
[TimeControl "40/5400+30:1800+30"]

1. d4 {[%emt 0:00:04]} e6 {[%emt 0:00:46]} 2. c4 {[%emt 0:00:16]} f5 {[%emt 0:00:27]} 3. g3 {[%emt 0:00:10]} Nf6 {[%emt 0:00:34]} 4. Bg2 {[%emt 0:00:07]} Be7 {[%emt 0:00:37]} 5. Nf3 {[%emt 0:00:12]} d6 {[%emt 0:02:59]} 6. Nc3 {[%emt 0:01:35]} O-O {[%emt 0:03:22]} 7. O-O {[%emt 0:00:28]} Ne4 {[%emt 0:03:28]} 8. Qc2 {[%emt 0:02:29]} Nxc3 {[%emt 0:00:23]} 9. Qxc3 {[%emt 0:03:28]} a5 {[%emt 0:01:18]} 10. Ne1 {[%emt 0:19:02]} Bf6 {[%emt 0:08:33]} 11. Be3 {[%emt 0:16:21]} Nc6 {[%emt 0:10:50]} 12. Rd1 {[%emt 0:09:57]} Qe7 {[%emt 0:06:07]} 13. Nc2 {[%emt 0:12:21]} g5 {[%emt 0:10:28]} 14. f4 {[%emt 0:05:51]} g4 {[%emt 0:06:31]} 15. Bf2 {[%emt 0:01:22]} Qg7 {[%emt 0:01:00]} 16. e4 {[%emt 0:03:46]} fxe4 {[%emt 0:01:25]} 17. Bxe4 {[%emt 0:00:21]} Ne7 {[%emt 0:02:24]} 18. Bg2 {[%emt 0:06:26]} c6 {[%emt 0:05:22]} 19. Rfe1 {[%emt 0:04:35]} Nf5 {[%emt 0:04:57]} 20. Re2 {[%emt 0:02:27]} Bd7 {[%emt 0:06:33]} 21. Qe1 {[%emt 0:02:46]} Rfe8 {[%emt 0:04:26]} 22. Rd3 {[%emt 0:03:17]} d5 {[%emt 0:05:20]} 23. c5 {[%emt 0:02:05]} Re7 {[%emt 0:08:01]} 24. Qd1 {[%emt 0:01:06]} Be8 {[%emt 0:04:18]} 25. Ra3 {[%emt 0:00:11]} Ra6 {[%emt 0:00:06]} 26. Bf1 {[%emt 0:00:34]} b5 {[%emt 0:00:25]} 27. cxb6 {[%emt 0:00:53]} Rxb6 {[%emt 0:00:02]} 28. b3 {[%emt 0:00:20]} Nd6 {[%emt 0:01:22]} 29. Rxa5 {[%emt 0:00:38]} Bg6 {[%emt 0:00:36]} 30. Ra8+ {[%emt 0:00:43]} Kf7 {[%emt 0:00:14]} 31. Ne1 {[%emt 0:01:29]} Ne4 {[%emt 0:00:52]} 32. Be3 {[%emt 0:00:35]} Nc3 {[%emt 0:00:20]} 33. Qd2 {[%emt 0:00:14]} Nxe2+ {[%emt 0:00:14]} 34. Bxe2 {[%emt 0:00:04]} Be4 {[%emt 0:00:19]} 35. Bd3 {[%emt 0:00:30]} Reb7 {[%emt 0:02:27]} 36. Bxe4 {[%emt 0:00:35]} dxe4 {[%emt 0:00:02]} 37. Nc2 {[%emt 0:00:46]} Rb5 {[%emt 0:00:32]} 38. Qe2 {[%emt 0:00:42]} Rd5 {[%emt 0:00:39]} 39. Qc4 {[%emt 0:00:32]} c5 {[%emt 0:00:54]} 40. dxc5 {[%emt 0:00:30]} Rd1+ {[%emt 0:00:38]} 41. Kf2 {[%emt 0:02:33]} Qh6 {[%emt 0:06:51]} 42. Qxe6+ {[%emt 0:10:50]} Kxe6 {[%emt 0:02:10]} 43. f5+ {[%emt 0:00:03]} Kxf5 {[%emt 0:06:25]} 44. Bxh6 {[%emt 0:00:05]} Rb1 {[%emt 0:00:17]} 45. Ne3+ {[%emt 0:10:39]} Ke6 {[%emt 0:08:42]} 46. Ra6+ {[%emt 0:03:01]} Kf7 {[%emt 0:00:21]} 47. c6 {[%emt 0:02:28]} Rc7 {[%emt 0:01:49]} 48. Bf4 {[%emt 0:01:31]} Rc8 {[%emt 0:00:11]} 49. Nc4 {[%emt 0:00:46]} Be7 {[%emt 0:06:03]} 50. c7 {[%emt 0:01:35]} e3+ {[%emt 0:00:42]} 51. Kxe3 {[%emt 0:00:28]} Bb4 {[%emt 0:01:25]} 52. Ke4 {[%emt 0:01:00]} Rf1 {[%emt 0:00:42]} 53. Rb6 {[%emt 0:00:45]} Be7 {[%emt 0:00:52]} 54. Rc6 {[%emt 0:00:24]} Re1+ {[%emt 0:00:36]} 55. Kf5 {[%emt 0:00:10]} h5 {[%emt 0:00:31]} 56. Nb6 {[%emt 0:00:20]} Rf8 {[%emt 0:00:27]} 57. c8=Q {[%emt 0:00:49]} 1-0

[Event "Serbian League Women 2024"]
[Site "Bajina Basta"]
[Date "2024.09.30"]
[Round "4.11"]
[White "Bojicic, Andjela"]
[Black "Zhurova, Anna"]
[Result "0-1"]
[ECO "D04"]
[WhiteElo "2071"]
[BlackElo "2199"]
[Annotator "RC"]
[PlyCount "108"]
[EventDate "2024.09.26"]
[EventType "team-tourn"]
[EventCountry "SRB"]
[SourceTitle "playchess.com"]
[Source "ChessBase"]
[SourceQuality "1"]
[TimeControl "40/5400+30:1800+30"]

1. d4 {[%emt 0:00:03]} Nf6 {[%emt 0:00:08]} 2. Nf3 {[%emt 0:00:06]} d5 {[%emt 0:00:11]} 3. e3 {[%emt 0:00:22]} c5 {[%emt 0:00:07]} 4. Be2 {[%emt 0:01:50]} Nc6 {[%emt 0:00:13]} 5. O-O {[%emt 0:00:29]} Bf5 {[%emt 0:00:19]} 6. b3 {[%emt 0:02:32]} e6 {[%emt 0:00:46]} 7. Bb2 {[%emt 0:01:45]} Rc8 {[%emt 0:01:24]} 8. Nbd2 {[%emt 0:02:08]} cxd4 {[%emt 0:01:26]} 9. exd4 {[%emt 0:00:33]} Bd6 {[%emt 0:00:27]} 10. c4 {[%emt 0:05:10]} O-O {[%emt 0:00:33]} 11. c5 {[%emt 0:15:18]} Bb8 {[%emt 0:01:18]} 12. a3 {[%emt 0:01:00]} Qc7 {[%emt 0:11:28]} 13. Re1 {[%emt 0:04:03]} Ng4 {[%emt 0:08:17]} 14. Nf1 {[%emt 0:02:03]} Be4 {[%emt 0:02:44]} 15. Ng3 {[%emt 0:04:32]} Nh6 {[%emt 0:14:57]} 16. b4 {[%emt 0:13:08]} Rce8 {[%emt 0:04:18]} 17. b5 {[%emt 0:02:11]} Ne7 {[%emt 0:00:48]} 18. Bd3 {[%emt 0:07:44]} Bxd3 {[%emt 0:08:58]} 19. Qxd3 {[%emt 0:00:05]} Ng6 {[%emt 0:00:05]} 20. Bc1 {[%emt 0:05:18]} Ng4 {[%emt 0:00:32]} 21. Bd2 {[%emt 0:04:04]} h5 {[%emt 0:08:38]} 22. b6 {[%emt 0:04:43]} axb6 {[%emt 0:04:05]} 23. cxb6 {[%emt 0:00:06]} Qxb6 {[%emt 0:02:09]} 24. Rab1 {[%emt 0:03:04]} Qc7 {[%emt 0:05:00]} 25. Rec1 {[%emt 0:01:24]} Qe7 {[%emt 0:03:44]} 26. Nxh5 {[%emt 0:02:36]} e5 {[%emt 0:14:59]} 27. dxe5 {[%emt 0:02:48]} N6xe5 {[%emt 0:00:57]} 28. Nxe5 {[%emt 0:00:51]} Bxe5 {[%emt 0:00:50]} 29. g3 {[%emt 0:03:12]} Bd6 {[%emt 0:01:49]} 30. Bc3 {[%emt 0:03:20]} Bc5 {[%emt 0:01:22]} 31. Bd4 {[%emt 0:00:40]} Bxd4 {[%emt 0:00:22]} 32. Qxd4 {[%emt 0:00:03]} Qg5 {[%emt 0:00:07]} 33. Nf4 {[%emt 0:01:16]} Qh6 {[%emt 0:00:23]} 34. h3 {[%emt 0:00:48]} Ne5 {[%emt 0:02:48]} 35. Qxd5 {[%emt 0:01:44]} g5 {[%emt 0:00:14]} 36. Nd3 {[%emt 0:00:18]} Ng6 {[%emt 0:00:45]} 37. Qf3 {[%emt 0:06:02]} Qxh3 {[%emt 0:00:38]} 38. Qg2 {[%emt 0:00:39]} Qf5 {[%emt 0:00:14]} 39. Nc5 {[%emt 0:01:08]} Ne5 {[%emt 0:00:14]} 40. Rb3 {[%emt 0:00:43]} g4 {[%emt 0:00:44]} 41. Qxb7 {[%emt 0:02:16]} Qg5 {[%emt 0:13:19]} 42. Rbb1 {[%emt 0:03:44]} Nf3+ {[%emt 0:01:48]} 43. Kg2 {[%emt 0:00:17]} Qh5 {[%emt 0:00:11]} 44. Rh1 {[%emt 0:02:10]} Qxc5 {[%emt 0:00:20]} 45. Rb5 {[%emt 0:00:20]} Qe7 {[%emt 0:02:37]} 46. Qxe7 {[%emt 0:14:58]} Rxe7 {[%emt 0:00:01]} 47. Rbh5 {[%emt 0:00:06]} Kg7 {[%emt 0:00:58]} 48. Rh7+ {[%emt 0:00:05]} Kf6 {[%emt 0:00:22]} 49. R1h6+ {[%emt 0:00:03]} Kf5 {[%emt 0:01:38]} 50. Rh5+ {[%emt 0:00:08]} Ke6 {[%emt 0:01:31]} 51. Rh1 {[%emt 0:02:52]} Ra8 {[%emt 0:00:40]} 52. Rg7 {[%emt 0:00:38]} Ra4 {[%emt 0:01:32]} 53. Rb1 {[%emt 0:01:16]} Kf6 {[%emt 0:01:39]} 54. Rg8 {[%emt 0:00:14]} Re1 {[%emt 0:01:35]} 0-1

[Event "Serbian League Women 2024"]
[Site "Bajina Basta"]
[Date "2024.09.30"]
[Round "4.13"]
[White "Maltsevskaya, Aleksandra"]
[Black "Osmak, Yuliia"]
[Result "1/2-1/2"]
[ECO "A13"]
[WhiteElo "2404"]
[BlackElo "2471"]
[Annotator "TA"]
[PlyCount "124"]
[EventDate "2024.09.26"]
[EventType "team-tourn"]
[EventCountry "SRB"]
[SourceTitle "playchess.com"]
[Source "ChessBase"]
[SourceQuality "1"]
[TimeControl "40/5400+30:1800+30"]

{[%evp 9,124,18,31,46,46,27,47,30,51,26,74,69,94,29,45,56,69,23,16,0,47,6,21,14,16,-28,-18,-30,130,8,48,24,64,33,60,34,0,-44,0,0,-3,-5,11,19,8,8,13,-105,-59,-38,4,-22,24,-67,26,16,26,18,18,19,121,103,128,129,158,134,154,150,179,127,109,149,135,108,122,123,123,146,227,-34,0,0,0,0,0,0,0,-105,0,0,-7,-79,-75,-72,0,0,0,0,0,-13,0,-13,0,0,0,0,0,0,0,0,0,0,0,0,0,0,0]} 1. c4 {[%emt 0:00:03]} e6 {[%emt 0:00:03]} 2. Nf3 {[%emt 0:00:08]} Nf6 {[%emt 0:00:13]} 3. g3 {[%emt 0:00:07]} d5 {[%emt 0:00:06]} 4. Bg2 {[%emt 0:00:05]} dxc4 {[%emt 0:00:19]} 5. Qa4+ {[%emt 0:00:06]} Bd7 {[%emt 0:00:05]} 6. Qxc4 {[%emt 0:00:11] A13: Engelse Opening: 1...e6.} c5 {[%emt 0:00:06] OK} 7. Nc3 {[%emt 0:18:03] OK} Bc6 {[%emt 0:01:17]} 8. O-O {[%emt 0:01:04] OK. Wit staat iets beter.} Nbd7 {[%emt 0:03:11][%cal Ob7b5]} 9. e4 $1 {[%emt 0:07:12] Sterk} Rc8 {[%emt 0:20:43] Fout (0.5)} (9... Ng4 $11) 10. Qe2 $1 $16 {[%emt 0:03:38] Sterk} e5 {[%emt 0:20:48]} {Wit zou moeten spelen} 11. b3 $146 {[%emt 0:10:10] Fout (0.7)} (11. a4 $16) ({Predecessor:} 11. d3 Bd6 12. Nh4 O-O 13. Nf5 Bb8 14. Bg5 h6 15. Be3 b5 16. b3 Kh7 17. Rac1 {½-½ Ivanisevic,I (2530)-Culum,S (2311) BIH-chT1 30th 2023 (7.1)}) 11... Bd6 $11 {[%emt 0:03:13] OK} 12. Bb2 {[%emt 0:00:21]} O-O {[%emt 0:00:27] OK} 13. d3 {[%emt 0:00:06] is superieur. Fout (0.5)} (13. Nh4 $14) 13... Re8 {[%emt 0:01:55] OK} 14. Nd1 {[%emt 0:01:24]} Bb5 {[%emt 0:06:29] voelt sterker. Fout (0.5)} (14... Nb8 $1 $11) 15. Ne3 {[%emt 0:06:14] Onnauwkeurig} Nb8 $1 {[%emt 0:00:42] Sterk} 16. Nc4 {[%emt 0:05:25] Bh3 is de sterke dreiging.} Nc6 {[%emt 0:00:35] OK} 17. Rac1 {[%emt 0:10:58] Onnauwkeurig} Bc7 {[%emt 0:04:43]} 18. Rfd1 {[%emt 0:01:30]} {Zwart zou moeten proberen} Qd7 $2 {[%emt 0:03:36] Fout (1.6)} (18... Ba6 $11) {Wit moet spelen} 19. Nh4 {[%emt 0:05:52] Fout (1.2)} (19. Na3 $16 Ba6 20. Rxc5) 19... Nd4 {[%emt 0:12:02] Onnauwkeurig} 20. Bxd4 {[%emt 0:00:16] OK} exd4 {[%emt 0:02:42] Onnauwkeurig} 21. f4 {[%emt 0:00:27] Onnauwkeurig} Bc6 {[%emt 0:02:28] Onnauwkeurig} 22. Rf1 {[%emt 0:04:09] Onnauwkeurig} b5 {[%emt 0:06:06]} 23. Nd2 {[%emt 0:14:13][%cal Bc4d2,Bd2f3,Bf3e5][%mdl 32] EV=30.47. Onnauwkeurig} Bd6 {[%emt 0:00:24][%cal Of6d5] Onnauwkeurig} (23... Nd5 $5) 24. Qd1 {[%emt 0:02:45]} Bf8 {[%emt 0:00:44] OK} 25. Ndf3 {[%emt 0:00:08]} Qd8 {[%emt 0:03:15]} 26. Ne5 {[%emt 0:00:20] En nu zou Nxc6 winnen. OK} Bb7 {[%emt 0:01:08] OK} 27. Nhf3 {[%emt 0:04:04]} Rc7 {[%emt 0:01:01]} 28. g4 {[%emt 0:01:27] blijft gelijk. Fout (1.2)} (28. Bh3 $11) {Zwart zou moeten spelen} 28... Bc8 {[%emt 0:00:31] Fout (0.5)} (28... Bd6 $17) 29. h3 $1 $15 {[%emt 0:01:20] Sterk} Nd7 {[%emt 0:01:16] Onnauwkeurig} 30. Nxd7 {[%emt 0:01:12] OK} Bxd7 {[%emt 0:00:04] zou overwogen moeten worden. Fout (0.5)} (30... Qxd7 31. Rf2 Qd8) 31. Qe1 {[%emt 0:00:20] Fout (0.9)} (31. e5 $11) 31... Bc8 {[%emt 0:01:29] Fout (0.9)} (31... c4 $15 32. bxc4 bxc4) 32. e5 $11 {[%emt 0:01:14] OK} Bb7 {[%emt 0:00:47] OK} 33. Nd2 {[%emt 0:00:05] OK} Bxg2 {[%emt 0:00:46] Beste (Gemakkelijk)} 34. Kxg2 {[%emt 0:00:05]} Qd5+ {[%emt 0:01:33] Fout (1.0)} (34... f6 $11) 35. Qe4 $16 {[%emt 0:00:05] OK} Qxe4+ {[%emt 0:00:42]} 36. Nxe4 {[%emt 0:00:05]} Rec8 {[%emt 0:00:32] Zwart is zwak op de lichte velden} 37. Rf2 {[%emt 0:01:14] Wit is actiever.} c4 {[%emt 0:01:15]} 38. dxc4 {[%emt 0:01:45] OK} bxc4 {[%emt 0:00:03]} {Wit zou moeten proberen} 39. bxc4 {[%emt 0:01:11] Fout (0.5)} (39. Rd2 $18) 39... Rxc4 {[%emt 0:01:52]} 40. Rxc4 {[%emt 0:00:14]} Rxc4 {[%emt 0:00:03][%mdl 4096] Eindspel. KRB-KRN} 41. Kf3 {[%emt 0:08:48] Beste (Gemakkelijk)} Ra4 {[%emt 0:02:06] Beste} 42. f5 $1 {[%emt 0:02:35] Sterk} Ra3+ {[%emt 0:02:35]} 43. Kf4 {[%emt 0:00:07] Beste (Gemakkelijk)} Bb4 {[%emt 0:08:25] [#] was nodig. Fout (0.8)} (43... Rxh3 $16 44. Rd2 d3) {Enige zet:} 44. e6 $2 {[%emt 0:06:50] Gemiste overwinning (2.6)} (44. Rb2 $1 $18 {[%cal Rb2b4]} a5 45. Rc2) 44... Kf8 {[%emt 0:02:58] Onnauwkeurig} 45. Rc2 {[%emt 0:08:14] Rc8+ zou dodelijk zijn.} (45. Rb2 $5 a5 $8 46. exf7 $11) 45... fxe6 {[%emt 0:03:32] Beste (Gemakkelijk)} 46. Rc8+ {[%emt 0:03:42] Beste (Gemakkelijk)} Ke7 $1 {[%emt 0:00:06] Sterk} 47. Rc7+ {[%emt 0:00:05] Beste (Gemakkelijk)} Kd8 $1 {[%emt 0:01:31] Sterk} 48. Rc4 {[%emt 0:00:27] [#] Fout (1.1)} (48. Rxg7 exf5 49. Rb7 (49. Kxf5 d3 $17) 49... fxe4 $11) (48. Rb7 $11 exf5 49. Rxb4 fxe4 50. Rxd4+ Kc7 51. Rxe4) {Beter is} 48... exf5 {[%emt 0:01:46] Fout (1.1)} (48... Ba5 $1 $17 {[%cal Ra5c7] Hoopt vervolgens op ...Bc7+.} 49. Rxd4+ Ke7) 49. Rxd4+ $11 {[%emt 0:00:06] OK} Ke7 {[%emt 0:00:30]} 50. gxf5 {[%emt 0:01:15] Houdt de partij in balans. Fout (0.7)} (50. Rxb4 $11 fxe4 51. Rxe4+ Kf6 52. Rc4) 50... a5 {[%emt 0:01:05]} 51. Rc4 {[%emt 0:00:27]} {Black should attempt} Bd6+ {[%emt 0:04:19] Fout (0.7)} ({Veel slechter is} 51... Rxh3 52. Rc7+ Kf8 53. Rc8+ Ke7 54. Rc7+ Kf8 55. Rc8+ Ke7 56. Rc7+ $11) (51... Kd7 $17) 52. Nxd6 {[%emt 0:02:41] Beste (Gemakkelijk). De stelling is in evenwicht.} Kxd6 {[%emt 0:00:04] KR-KR} 53. Rd4+ {[%emt 0:00:04] OK} Ke7 {[%emt 0:05:13] OK} 54. Re4+ {[%emt 0:00:07]} Kf6 {[%emt 0:01:06]} 55. Re6+ {[%emt 0:00:11] OK} Kf7 {[%emt 0:00:17]} 56. Ra6 {[%emt 0:00:05] OK} g6 {[%emt 0:01:48]} (56... Rxh3 57. Rxa5 g6 58. Ra7+ Kf6 59. Ra6+ Kf7 60. fxg6+ hxg6 61. Ra7+ Kf6 62. Ra6+ Kg7 63. a4 $15) 57. Ra7+ {[%emt 0:00:33] OK} Kf6 {[%emt 0:00:14] met als doel voor ...g5+. OK} 58. Ra6+ {[%emt 0:00:08] Beste (Gemakkelijk)} Kg7 {[%emt 0:00:36]} 59. fxg6 {[%emt 0:01:58]} hxg6 {[%emt 0:00:07][%cal Og7h6]} 60. Kg5 {[%emt 0:00:05] OK} Rg3+ {[%emt 0:00:37] OK} 61. Kf4 {[%emt 0:00:14]} Ra3 {[%emt 0:00:14] OK} 62. Kg5 {[%emt 0:00:06] OK} Rg3+ {[%emt 0:00:04] Zwart verdedigde met geluk.   Blunder waarde: Wit=0.31/Zwart=0.29 (precies) . OK.  Gemiste overwinning: 	Wit=1      	---        Fout:        	Wit=8      	Zwart=10     Onnauwkeurig:    	Wit=5      	Zwart=6      OK:         	Wit=16     	Zwart=13     Beste:        	Wit=6      	Zwart=3      Sterk:        	Wit=4      	Zwart=3} 1/2-1/2